Workbook

Sheet Sheet1
B2: AB | C2: 1 | E2: <CBE | F2: =angcos(C6,C4,C7) -> 2.436504808
B3: AD | C3: =0.68*C2 -> 0.68 | J3: A | K3: 0 | L3: 0
B4: BE | C4: =0.68*C2 -> 0.68 | J4: B | K4: =C2*COS(B12*D_R()) -> -0.9396926208 | L4: =C2*SIN(B12*D_R()) -> -0.3420201433
B5: DC | C5: =0.51*C2 -> 0.51 | J5: C | K5: =K9+C5*COS(G12) -> -0.8617789527 | L5: =L9+C5*SIN(G12) -> 0.1417457715
B6: CB | C6: =0.49*C2 -> 0.49 | J6: E | K6: =K4+C4*COS(F12+F2) -> -1.457137312 | L6: =L4+C4*SIN(F12+F2) -> -0.7832128349
B7: CE | C7: =1.1*C2 -> 1.1 | J7: B | K7: =K4 -> -0.9396926208 | L7: =L4 -> -0.3420201433
B8: <xAD | C8: 135 | D8: =C8*D_R() -> 2.35619449 | J8: C | K8: =K5 -> -0.8617789527 | L8: =L5 -> 0.1417457715
J9: D | K9: =C3*COS(D8) -> -0.4808326112 | L9: =C3*SIN(D8) -> 0.4808326112
D10: w.r to AD | F10: W.r. to x axis
B11: q12 | D11: q13 | E11: q14 | F11: q13 | G11: q14
B12: 200 | C12: =(B12-$C$8)*D_R() -> 1.134464014 | D12: =fourbar2($C$2,$C$6,$C$5,$C$3,1,C12) -> -0.9450834305 | E12: 1.512726171 | F12: =D12+$D$8 -> 1.41111106 | G12: =E12+$D$8 -> 3.868920661
F13: =F12/D_R() -> 80.85070815 | G13: =G12/D_R() -> 221.6728251
D17: w.r to AD | F17: W.r. to x axis
B18: q12 | D18: q13 | E18: q14 | F18: q13 | G18: q14 | H18: xE | I18: yE
B19: 145 | C19: =(B19-$C$8)*D_R() -> 0.1745329252 | D19: =fourbar2($C$2,$C$6,$C$5,$C$3,1,C19) -> -1.357422995 | E19: -0.641638865 | F19: =D19+$D$8 -> 0.9987714951 | G19: =E19+$D$8 -> 1.714555625 | H19: =$C$2*COS(B19*D_R())+$C$4*COS(F19+$F$2) -> -1.470037184 | I19: =$C$2*SIN(B19*D_R())+$C$4*SIN(F19+$F$2) -> 0.3767299605
B20: =B19+1 -> 146 | C20: =(B20-$C$8)*D_R() -> 0.1919862177 | D20: =fourbar2($C$2,$C$6,$C$5,$C$3,1,C20) -> -1.318808958 | E20: -0.5899341833 | F20: =D20+$D$8 -> 1.037385532 | G20: =E20+$D$8 -> 1.766260307 | H20: =$C$2*COS(B20*D_R())+$C$4*COS(F20+$F$2) -> -1.471838375 | I20: =$C$2*SIN(B20*D_R())+$C$4*SIN(F20+$F$2) -> 0.3373661055
B21: =B20+1 -> 147 | C21: =(B21-$C$8)*D_R() -> 0.2094395102 | D21: =fourbar2($C$2,$C$6,$C$5,$C$3,1,C21) -> -1.282051913 | E21: -0.5390721369 | F21: 1.074142577 | G21: 1.817122353 | H21: =$C$2*COS(B21*D_R())+$C$4*COS(F21+$F$2) -> -1.47288532 | I21: =$C$2*SIN(B21*D_R())+$C$4*SIN(F21+$F$2) -> 0.2993399347
B22: 148 | C22: =(B22-$C$8)*D_R() -> 0.2268928028 | D22: =fourbar2($C$2,$C$6,$C$5,$C$3,1,C22) -> -1.247135397 | E22: -0.4890839693 | F22: 1.109059093 | G22: 1.867110521 | H22: =$C$2*COS(B22*D_R())+$C$4*COS(F22+$F$2) -> -1.473313032 | I22: =$C$2*SIN(B22*D_R())+$C$4*SIN(F22+$F$2) -> 0.2626296085
B23: 149 | C23: =(B23-$C$8)*D_R() -> 0.2443460953 | D23: =fourbar2($C$2,$C$6,$C$5,$C$3,1,C23) -> -1.214030512 | E23: -0.4399876216 | F23: 1.142163978 | G23: 1.916206869 | H23: =$C$2*COS(B23*D_R())+$C$4*COS(F23+$F$2) -> -1.473242666 | I23: =$C$2*SIN(B23*D_R())+$C$4*SIN(F23+$F$2) -> 0.2271993285
B24: 150 | C24: =(B24-$C$8)*D_R() -> 0.2617993878 | D24: =fourbar2($C$2,$C$6,$C$5,$C$3,1,C24) -> -1.182698145 | E24: -0.3917894449 | F24: 1.173496346 | G24: 1.964405045 | H24: =$C$2*COS(B24*D_R())+$C$4*COS(F24+$F$2) -> -1.472781194 | I24: =$C$2*SIN(B24*D_R())+$C$4*SIN(F24+$F$2) -> 0.1930025887
B25: 151 | C25: =(B25-$C$8)*D_R() -> 0.2792526803 | D25: =fourbar2($C$2,$C$6,$C$5,$C$3,1,C25) -> -1.153091082 | E25: -0.3444859072 | F25: 1.203103409 | G25: 2.011708583 | H25: =$C$2*COS(B25*D_R())+$C$4*COS(F25+$F$2) -> -1.472021619 | I25: =$C$2*SIN(B25*D_R())+$C$4*SIN(F25+$F$2) -> 0.1599851202
B26: 152 | C26: =(B26-$C$8)*D_R() -> 0.2967059728 | D26: =fourbar2($C$2,$C$6,$C$5,$C$3,1,C26) -> -1.125155955 | E26: -0.2980652268 | F26: 1.231038535 | G26: 2.058129263 | H26: =$C$2*COS(B26*D_R())+$C$4*COS(F26+$F$2) -> -1.471043589 | I26: =$C$2*SIN(B26*D_R())+$C$4*SIN(F26+$F$2) -> 0.1280874686
B27: 153 | C27: =(B27-$C$8)*D_R() -> 0.3141592654 | D27: =fourbar2($C$2,$C$6,$C$5,$C$3,1,C27) -> -1.098834981 | E27: -0.2525088884 | F27: 1.257359509 | G27: 2.103685602 | H27: =$C$2*COS(B27*D_R())+$C$4*COS(F27+$F$2) -> -1.469914293 | I27: =$C$2*SIN(B27*D_R())+$C$4*SIN(F27+$F$2) -> 0.09724718134
B28: 154 | C28: =(B28-$C$8)*D_R() -> 0.3316125579 | D28: =fourbar2($C$2,$C$6,$C$5,$C$3,1,C28) -> -1.074067485 | E28: -0.2077930117 | F28: 1.282127005 | G28: 2.148401479 | H28: =$C$2*COS(B28*D_R())+$C$4*COS(F28+$F$2) -> -1.468689529 | I28: =$C$2*SIN(B28*D_R())+$C$4*SIN(F28+$F$2) -> 0.06740061092
B29: 155 | C29: =(B29-$C$8)*D_R() -> 0.3490658504 | D29: =fourbar2($C$2,$C$6,$C$5,$C$3,1,C29) -> -1.050791194 | E29: -0.1638895609 | F29: 1.305403296 | G29: 2.192304929 | H29: =$C$2*COS(B29*D_R())+$C$4*COS(F29+$F$2) -> -1.467414858 | I29: =$C$2*SIN(B29*D_R())+$C$4*SIN(F29+$F$2) -> 0.03848435906
B30: 156 | C30: =(B30-$C$8)*D_R() -> 0.3665191429 | D30: =fourbar2($C$2,$C$6,$C$5,$C$3,1,C30) -> -1.028943326 | E30: -0.1207673914 | F30: 1.327251164 | G30: 2.235427099 | H30: =$C$2*COS(B30*D_R())+$C$4*COS(F30+$F$2) -> -1.466126778 | I30: =$C$2*SIN(B30*D_R())+$C$4*SIN(F30+$F$2) -> 0.01043639819
B31: 157 | C31: =(B31-$C$8)*D_R() -> 0.3839724354 | D31: =fourbar2($C$2,$C$6,$C$5,$C$3,1,C31) -> -1.008461482 | E31: -0.07839313892 | F31: 1.347733009 | G31: 2.277801351 | H31: =$C$2*COS(B31*D_R())+$C$4*COS(F31+$F$2) -> -1.46485388 | I31: =$C$2*SIN(B31*D_R())+$C$4*SIN(F31+$F$2) -> -0.01680308759
B32: 158 | C32: =(B32-$C$8)*D_R() -> 0.401425728 | D32: =fourbar2($C$2,$C$6,$C$5,$C$3,1,C32) -> -0.9892843525 | E32: -0.03673196251 | F32: 1.366910138 | G32: 2.319462528 | H32: =$C$2*COS(B32*D_R())+$C$4*COS(F32+$F$2) -> -1.463617931 | I32: =$C$2*SIN(B32*D_R())+$C$4*SIN(F32+$F$2) -> -0.0432910988
B33: 159 | C33: =(B33-$C$8)*D_R() -> 0.4188790205 | D33: =fourbar2($C$2,$C$6,$C$5,$C$3,1,C33) -> -0.9713522832 | E33: 0.004251846442 | F33: 1.384842207 | G33: 2.360446337 | H33: =$C$2*COS(B33*D_R())+$C$4*COS(F33+$F$2) -> -1.462434889 | I33: =$C$2*SIN(B33*D_R())+$C$4*SIN(F33+$F$2) -> -0.06908141258
B34: 160 | C34: =(B34-$C$8)*D_R() -> 0.436332313 | D34: =fourbar2($C$2,$C$6,$C$5,$C$3,1,C34) -> -0.9546076949 | E34: 0.04459437345 | F34: 1.401586795 | G34: 2.400788864 | H34: =$C$2*COS(B34*D_R())+$C$4*COS(F34+$F$2) -> -1.461315816 | I34: =$C$2*SIN(B34*D_R())+$C$4*SIN(F34+$F$2) -> -0.09422433226
B35: 161 | C35: =(B35-$C$8)*D_R() -> 0.4537856055 | D35: =fourbar2($C$2,$C$6,$C$5,$C$3,1,C35) -> -0.9389953991 | E35: 0.08433169386 | F35: 1.417199091 | G35: 2.440526184 | H35: =$C$2*COS(B35*D_R())+$C$4*COS(F35+$F$2) -> -1.4602677 | I35: =$C$2*SIN(B35*D_R())+$C$4*SIN(F35+$F$2) -> -0.118766561
B36: 162 | C36: =(B36-$C$8)*D_R() -> 0.471238898 | D36: =fourbar2($C$2,$C$6,$C$5,$C$3,1,C36) -> -0.9244628189 | E36: 0.1234995748 | F36: 1.431731671 | G36: 2.479694065 | H36: =$C$2*COS(B36*D_R())+$C$4*COS(F36+$F$2) -> -1.459294182 | I36: =$C$2*SIN(B36*D_R())+$C$4*SIN(F36+$F$2) -> -0.1427511707
B37: 163 | C37: =(B37-$C$8)*D_R() -> 0.4886921906 | D37: =fourbar2($C$2,$C$6,$C$5,$C$3,1,C37) -> -0.9109601335 | E37: 0.1621332531 | F37: 1.445234357 | G37: 2.518327743 | H37: =$C$2*COS(B37*D_R())+$C$4*COS(F37+$F$2) -> -1.458396193 | I37: =$C$2*SIN(B37*D_R())+$C$4*SIN(F37+$F$2) -> -0.166217642
B38: 164 | C38: =(B38-$C$8)*D_R() -> 0.5061454831 | D38: =fourbar2($C$2,$C$6,$C$5,$C$3,1,C38) -> -0.8984403646 | E38: 0.2002672762 | F38: 1.457754126 | G38: 2.556461766 | H38: =$C$2*COS(B38*D_R())+$C$4*COS(F38+$F$2) -> -1.457572501 | I38: =$C$2*SIN(B38*D_R())+$C$4*SIN(F38+$F$2) -> -0.1892019553
B39: 165 | C39: =(B39-$C$8)*D_R() -> 0.5235987756 | D39: =fourbar2($C$2,$C$6,$C$5,$C$3,1,C39) -> -0.886859414 | E39: 0.2379353971 | F39: 1.469335076 | G39: 2.594129887 | H39: =$C$2*COS(B39*D_R())+$C$4*COS(F39+$F$2) -> -1.456820188 | I39: =$C$2*SIN(B39*D_R())+$C$4*SIN(F39+$F$2) -> -0.211736717
B40: 166 | C40: =(B40-$C$8)*D_R() -> 0.5410520681 | D40: =fourbar2($C$2,$C$6,$C$5,$C$3,1,C40) -> -0.8761760673 | E40: 0.2751705129 | F40: 1.480018423 | G40: 2.631365003 | H40: =$C$2*COS(B40*D_R())+$C$4*COS(F40+$F$2) -> -1.45613506 | I40: =$C$2*SIN(B40*D_R())+$C$4*SIN(F40+$F$2) -> -0.2338513085
B41: 167 | C41: =(B41-$C$8)*D_R() -> 0.5585053606 | D41: =fourbar2($C$2,$C$6,$C$5,$C$3,1,C41) -> -0.8663519696 | E41: 0.3120046387 | F41: 1.489842521 | G41: 2.668199129 | H41: =$C$2*COS(B41*D_R())+$C$4*COS(F41+$F$2) -> -1.455511987 | I41: =$C$2*SIN(B41*D_R())+$C$4*SIN(F41+$F$2) -> -0.2555720471
B42: 168 | C42: =(B42-$C$8)*D_R() -> 0.5759586532 | D42: =fourbar2($C$2,$C$6,$C$5,$C$3,1,C42) -> -0.8573515847 | E42: 0.3484689133 | F42: 1.498842905 | G42: 2.704663403 | H42: =$C$2*COS(B42*D_R())+$C$4*COS(F42+$F$2) -> -1.4549452 | I42: =$C$2*SIN(B42*D_R())+$C$4*SIN(F42+$F$2) -> -0.2769223519
B43: 169 | C43: =(B43-$C$8)*D_R() -> 0.5934119457 | D43: =fourbar2($C$2,$C$6,$C$5,$C$3,1,C43) -> -0.8491421412 | E43: 0.3845936272 | F43: 1.507052349 | G43: 2.740788117 | H43: =$C$2*COS(B43*D_R())+$C$4*COS(F43+$F$2) -> -1.454428543 | I43: =$C$2*SIN(B43*D_R())+$C$4*SIN(F43+$F$2) -> -0.2979229087
B44: 170 | C44: =(B44-$C$8)*D_R() -> 0.6108652382 | D44: =fourbar2($C$2,$C$6,$C$5,$C$3,1,C44) -> -0.8416935739 | E44: 0.4204082727 | F44: 1.514500916 | G44: 2.776602763 | H44: =$C$2*COS(B44*D_R())+$C$4*COS(F44+$F$2) -> -1.453955678 | I44: =$C$2*SIN(B44*D_R())+$C$4*SIN(F44+$F$2) -> -0.318591829
B45: 171 | C45: =(B45-$C$8)*D_R() -> 0.6283185307 | D45: =fourbar2($C$2,$C$6,$C$5,$C$3,1,C45) -> -0.8349784623 | E45: 0.4559416108 | F45: 1.521216028 | G45: 2.812136101 | H45: =$C$2*COS(B45*D_R())+$C$4*COS(F45+$F$2) -> -1.453520267 | I45: =$C$2*SIN(B45*D_R())+$C$4*SIN(F45+$F$2) -> -0.3389448004
B46: 172 | C46: =(B46-$C$8)*D_R() -> 0.6457718232 | D46: =fourbar2($C$2,$C$6,$C$5,$C$3,1,C46) -> -0.8289719732 | E46: 0.4912217521 | F46: 1.527222517 | G46: 2.847416242 | H46: =$C$2*COS(B46*D_R())+$C$4*COS(F46+$F$2) -> -1.453116119 | I46: =$C$2*SIN(B46*D_R())+$C$4*SIN(F46+$F$2) -> -0.358995226
B47: 173 | C47: =(B47-$C$8)*D_R() -> 0.6632251158 | D47: =fourbar2($C$2,$C$6,$C$5,$C$3,1,C47) -> -0.8236518077 | E47: 0.5262762518 | F47: 1.532542683 | G47: 2.882470742 | H47: =$C$2*COS(B47*D_R())+$C$4*COS(F47+$F$2) -> -1.452737327 | I47: =$C$2*SIN(B47*D_R())+$C$4*SIN(F47+$F$2) -> -0.3787543501
B48: 174 | C48: =(B48-$C$8)*D_R() -> 0.6806784083 | D48: =fourbar2($C$2,$C$6,$C$5,$C$3,1,C48) -> -0.8189981582 | E48: 0.561132217 | F48: 1.537196332 | G48: 2.917326707 | H48: =$C$2*COS(B48*D_R())+$C$4*COS(F48+$F$2) -> -1.452378369 | I48: =$C$2*SIN(B48*D_R())+$C$4*SIN(F48+$F$2) -> -0.39823137
B49: 175 | C49: =(B49-$C$8)*D_R() -> 0.6981317008 | D49: =fourbar2($C$2,$C$6,$C$5,$C$3,1,C49) -> -0.8149936767 | E49: 0.5958164255 | F49: =D49+$D$8 -> 1.541200814 | G49: =E49+$D$8 -> 2.952010916 | H49: =$C$2*COS(B49*D_R())+$C$4*COS(F49+$F$2) -> -1.452034213 | I49: =$C$2*SIN(B49*D_R())+$C$4*SIN(F49+$F$2) -> -0.4174335324
B50: 176 | C50: =(B50-$C$8)*D_R() -> 0.7155849933 | D50: =fourbar2($C$2,$C$6,$C$5,$C$3,1,C50) -> -0.8116234577 | E50: 0.6303554574 | F50: 1.544571033 | G50: 2.986549948 | H50: =$C$2*COS(B50*D_R())+$C$4*COS(F50+$F$2) -> -1.451700403 | I50: =$C$2*SIN(B50*D_R())+$C$4*SIN(F50+$F$2) -> -0.4363662118
B51: 177 | C51: =(B51-$C$8)*D_R() -> 0.7330382858 | D51: =fourbar2($C$2,$C$6,$C$5,$C$3,1,C51) -> -0.8088750386 | E51: 0.6647758405 | F51: 1.547319452 | G51: 3.020970331 | H51: =$C$2*COS(B51*D_R())+$C$4*COS(F51+$F$2) -> -1.451373137 | I51: =$C$2*SIN(B51*D_R())+$C$4*SIN(F51+$F$2) -> -0.4550329732
B52: 178 | C52: =(B52-$C$8)*D_R() -> 0.7504915784 | D52: =fourbar2($C$2,$C$6,$C$5,$C$3,1,C52) -> -0.8067384209 | E52: 0.6991042108 | F52: 1.549456069 | G52: 3.055298701 | H52: =$C$2*COS(B52*D_R())+$C$4*COS(F52+$F$2) -> -1.451049343 | I52: =$C$2*SIN(B52*D_R())+$C$4*SIN(F52+$F$2) -> -0.4734356138
B53: 179 | C53: =(B53-$C$8)*D_R() -> 0.7679448709 | D53: =fourbar2($C$2,$C$6,$C$5,$C$3,1,C53) -> -0.8052061156 | E53: 0.7333674916 | F53: 1.550988375 | G53: 3.089561982 | H53: =$C$2*COS(B53*D_R())+$C$4*COS(F53+$F$2) -> -1.450726757 | I53: =$C$2*SIN(B53*D_R())+$C$4*SIN(F53+$F$2) -> -0.4915741858
B54: 180 | C54: =(B54-$C$8)*D_R() -> 0.7853981634 | D54: =fourbar2($C$2,$C$6,$C$5,$C$3,1,C54) -> -0.8042732166 | E54: 0.7675930936 | F54: 1.551921274 | G54: 3.123787584 | H54: =$C$2*COS(B54*D_R())+$C$4*COS(F54+$F$2) -> -1.450403995 | I54: =$C$2*SIN(B54*D_R())+$C$4*SIN(F54+$F$2) -> -0.5094469953
B55: 181 | C55: =(B55-$C$8)*D_R() -> 0.8028514559 | D55: =fourbar2($C$2,$C$6,$C$5,$C$3,1,C55) -> -0.8039375092 | E55: 0.8018091422 | F55: 1.552256981 | G55: 3.158003632 | H55: =$C$2*COS(B55*D_R())+$C$4*COS(F55+$F$2) -> -1.45008064 | I55: =$C$2*SIN(B55*D_R())+$C$4*SIN(F55+$F$2) -> -0.527050577
B56: 182 | C56: =(B56-$C$8)*D_R() -> 0.8203047484 | D56: =fourbar2($C$2,$C$6,$C$5,$C$3,1,C56) -> -0.8041996185 | E56: 0.8360447373 | F56: 1.551994872 | G56: 3.192239227 | H56: =$C$2*COS(B56*D_R())+$C$4*COS(F56+$F$2) -> -1.449757327 | I56: =$C$2*SIN(B56*D_R())+$C$4*SIN(F56+$F$2) -> -0.5443796395
B57: 183 | C57: =(B57-$C$8)*D_R() -> 0.837758041 | D57: =fourbar2($C$2,$C$6,$C$5,$C$3,1,C57) -> -0.8050632071 | E57: 0.8703302539 | F57: 1.551131283 | G57: 3.226524744 | H57: =$C$2*COS(B57*D_R())+$C$4*COS(F57+$F$2) -> -1.449435848 | I57: =$C$2*SIN(B57*D_R())+$C$4*SIN(F57+$F$2) -> -0.5614269777
B58: 184 | C58: =(B58-$C$8)*D_R() -> 0.8552113335 | D58: =fourbar2($C$2,$C$6,$C$5,$C$3,1,C58) -> -0.8065352335 | E58: 0.904697695 | F58: 1.549659257 | G58: 3.260892185 | H58: =$C$2*COS(B58*D_R())+$C$4*COS(F58+$F$2) -> -1.44911927 | I58: =$C$2*SIN(B58*D_R())+$C$4*SIN(F58+$F$2) -> -0.5781833451
B59: 185 | C59: =(B59-$C$8)*D_R() -> 0.872664626 | D59: =fourbar2($C$2,$C$6,$C$5,$C$3,1,C59) -> -0.808626285 | E59: 0.9391811105 | F59: 1.547568205 | G59: 3.295375601 | H59: =$C$2*COS(B59*D_R())+$C$4*COS(F59+$F$2) -> -1.448812077 | I59: =$C$2*SIN(B59*D_R())+$C$4*SIN(F59+$F$2) -> -0.594637278
B60: 186 | C60: =(B60-$C$8)*D_R() -> 0.8901179185 | D60: =fourbar2($C$2,$C$6,$C$5,$C$3,1,C60) -> -0.8113510061 | E60: 0.9738171004 | F60: 1.544843484 | G60: 3.330011591 | H60: =$C$2*COS(B60*D_R())+$C$4*COS(F60+$F$2) -> -1.448520338 | I60: =$C$2*SIN(B60*D_R())+$C$4*SIN(F60+$F$2) -> -0.6107748602
B61: 187 | C61: =(B61-$C$8)*D_R() -> 0.907571211 | D61: =fourbar2($C$2,$C$6,$C$5,$C$3,1,C61) -> -0.8147286463 | E61: 1.008645429 | F61: 1.541465844 | G61: 3.36483992 | H61: =$C$2*COS(B61*D_R())+$C$4*COS(F61+$F$2) -> -1.448251919 | I61: =$C$2*SIN(B61*D_R())+$C$4*SIN(F61+$F$2) -> -0.6265794121
B62: 188 | C62: =(B62-$C$8)*D_R() -> 0.9250245036 | D62: =fourbar2($C$2,$C$6,$C$5,$C$3,1,C62) -> -0.8187837657 | E62: 1.043709786 | F62: =D62+$D$8 -> 1.537410725 | G62: =E62+$D$8 -> 3.399904277 | H62: =$C$2*COS(B62*D_R())+$C$4*COS(F62+$F$2) -> -1.448016743 | I62: =$C$2*SIN(B62*D_R())+$C$4*SIN(F62+$F$2) -> -0.6420310837
B63: 189 | C63: =(B63-$C$8)*D_R() -> 0.9424777961 | D63: =fourbar2($C$2,$C$6,$C$5,$C$3,1,C63) -> -0.823547147 | E63: 1.079058738 | F63: 1.532647343 | G63: 3.435253228 | H63: =$C$2*COS(B63*D_R())+$C$4*COS(F63+$F$2) -> -1.447827117 | I63: =$C$2*SIN(B63*D_R())+$C$4*SIN(F63+$F$2) -> -0.6571063197
B64: 190 | C64: =(B64-$C$8)*D_R() -> 0.9599310886 | D64: =fourbar2($C$2,$C$6,$C$5,$C$3,1,C64) -> -0.8290569846 | E64: 1.114746943 | F64: 1.527137506 | G64: 3.470941433 | H64: =$C$2*COS(B64*D_R())+$C$4*COS(F64+$F$2) -> -1.447698152 | I64: =$C$2*SIN(B64*D_R())+$C$4*SIN(F64+$F$2) -> -0.6717771555
B65: 191 | C65: =(B65-$C$8)*D_R() -> 0.9773843811 | D65: =fourbar2($C$2,$C$6,$C$5,$C$3,1,C65) -> -0.8353604528 | E65: 1.150836727 | F65: 1.520834037 | G65: 3.507031217 | H65: =$C$2*COS(B65*D_R())+$C$4*COS(F65+$F$2) -> -1.447648306 | I65: =$C$2*SIN(B65*D_R())+$C$4*SIN(F65+$F$2) -> -0.6860102814
B66: 192 | C66: =(B66-$C$8)*D_R() -> 0.9948376736 | D66: =fourbar2($C$2,$C$6,$C$5,$C$3,1,C66) -> -0.8425158033 | E66: 1.187400166 | F66: 1.513678687 | G66: 3.543594656 | H66: =$C$2*COS(B66*D_R())+$C$4*COS(F66+$F$2) -> -1.447700102 | I66: =$C$2*SIN(B66*D_R())+$C$4*SIN(F66+$F$2) -> -0.6997657839
B67: 193 | C67: =(B67-$C$8)*D_R() -> 1.012290966 | D67: =fourbar2($C$2,$C$6,$C$5,$C$3,1,C67) -> -0.850595217 | E67: 1.224521883 | F67: 1.505599273 | G67: 3.580716373 | H67: =$C$2*COS(B67*D_R())+$C$4*COS(F67+$F$2) -> -1.44788109 | I67: =$C$2*SIN(B67*D_R())+$C$4*SIN(F67+$F$2) -> -0.7129954265
B68: 194 | C68: =(B68-$C$8)*D_R() -> 1.029744259 | D68: =fourbar2($C$2,$C$6,$C$5,$C$3,1,C68) -> -0.8596887625 | E68: 1.262302912 | F68: 1.496505728 | G68: 3.618497402 | H68: =$C$2*COS(B68*D_R())+$C$4*COS(F68+$F$2) -> -1.448225166 | I68: =$C$2*SIN(B68*D_R())+$C$4*SIN(F68+$F$2) -> -0.7256402544
B69: 195 | C69: =(B69-$C$8)*D_R() -> 1.047197551 | D69: =fourbar2($C$2,$C$6,$C$5,$C$3,1,C69) -> -0.8699100217 | E69: 1.300866164 | F69: =D69+$D$8 -> 1.486284468 | G69: =E69+$D$8 -> 3.657060654 | H69: =$C$2*COS(B69*D_R())+$C$4*COS(F69+$F$2) -> -1.448774425 | I69: =$C$2*SIN(B69*D_R())+$C$4*SIN(F69+$F$2) -> -0.7376271805
B70: 196 | C70: =(B70-$C$8)*D_R() -> 1.064650844 | D70: =fourbar2($C$2,$C$6,$C$5,$C$3,1,C70) -> -0.8814043215 | E70: 1.340364387 | F70: 1.474790169 | G70: 3.696558877 | H70: =$C$2*COS(B70*D_R())+$C$4*COS(F70+$F$2) -> -1.449581842 | I70: =$C$2*SIN(B70*D_R())+$C$4*SIN(F70+$F$2) -> -0.7488639774
B71: 197 | C71: =(B71-$C$8)*D_R() -> 1.082104136 | D71: =fourbar2($C$2,$C$6,$C$5,$C$3,1,C71) -> -0.8943611979 | E71: 1.380992202 | F71: 1.461833292 | G71: 3.737186692 | H71: =$C$2*COS(B71*D_R())+$C$4*COS(F71+$F$2) -> -1.45071528 | I71: =$C$2*SIN(B71*D_R())+$C$4*SIN(F71+$F$2) -> -0.7592316773
B72: 198 | C72: =(B72-$C$8)*D_R() -> 1.099557429 | D72: =fourbar2($C$2,$C$6,$C$5,$C$3,1,C72) -> -0.9090340872 | E72: 1.423005082 | F72: 1.447160403 | G72: 3.779199572 | H72: =$C$2*COS(B72*D_R())+$C$4*COS(F72+$F$2) -> -1.452263758 | I72: =$C$2*SIN(B72*D_R())+$C$4*SIN(F72+$F$2) -> -0.7685725413
B73: 199 | C73: =(B73-$C$8)*D_R() -> 1.117010721 | D73: =fourbar2($C$2,$C$6,$C$5,$C$3,1,C73) -> -0.925773109 | E73: 1.466750916 | F73: 1.430421381 | G73: 3.822945406 | H73: =$C$2*COS(B73*D_R())+$C$4*COS(F73+$F$2) -> -1.454347752 | I73: =$C$2*SIN(B73*D_R())+$C$4*SIN(F73+$F$2) -> -0.7766699932
B74: 200 | C74: =(B74-$C$8)*D_R() -> 1.134464014 | D74: =fourbar2($C$2,$C$6,$C$5,$C$3,1,C74) -> -0.9450834305 | E74: 1.512726171 | F74: 1.41111106 | G74: 3.868920661 | H74: =$C$2*COS(B74*D_R())+$C$4*COS(F74+$F$2) -> -1.457137312 | I74: =$C$2*SIN(B74*D_R())+$C$4*SIN(F74+$F$2) -> -0.7832128349

Sheet Sheet2
B2: AB | C2: 1 | D2: <CBE | E2: =angcos(C3,C9,C5) -> 0.8369133914 | F2: =E2/D_R() -> 47.95160515 | I2: 5 | K2: A | L2: 0 | M2: 0
B3: BC | C3: =3.1*$C$2 -> 3.1 | K3: B | L3: =C2*COS(B14*D_R()) -> 0.8660254038 | M3: =C2*SIN(B14*D_R()) -> 0.5
B4: CD | C4: =2.6*$C$2 -> 2.6 | K4: C | L4: =L8+C4*COS(G14) -> 3.747156651 | M4: =M8+C4*SIN(G14) -> -0.6441515346
B5: CE | C5: =3*$C$2 -> 3 | K5: E | L5: =H14 -> 4.452198597 | M5: =I14 -> 2.271824435
B6: AF | C6: =2.3*$C$2 -> 2.3 | K6: B | L6: =L3 -> 0.8660254038 | M6: =M3 -> 0.5
B7: AD | C7: =4.5*$C$2 -> 4.5 | K7: C | L7: =L4 -> 3.747156651 | M7: =M4 -> -0.6441515346
B8: FD | C8: =6.3*$C$2 -> 6.3 | K8: D | L8: =C7*COS(D11) -> 3.181980515 | M8: =C7*SIN(D11) -> -3.181980515
B9: BE | C9: =4*$C$2 -> 4 | K9: F | L9: 0 | M9: =C6 -> 2.3
B10: <xDA | C10: 135 | K10: G | L10: =L9+I2*COS(J14) -> 4.999899879 | M10: =C6+I2*SIN(J14) -> 2.268358329
B11: <xAD | C11: =C10-180 -> -45 | D11: =C11*D_R() -> -0.7853981634
A13: 5 | B13: q12 | D13: q13 | E13: q14 | F13: q13 | G13: q14 | H13: xE | I13: yE | J13: q16
A14: 222 | B14: =MOD(A14*A13,360) -> 30 | C14: =(B14-$C$11)*D_R() -> 1.308996939 | D14: =fourbar2($C$2,$C$3,$C$4,$C$7,1,C14) -> 0.4073779992 | E14: 2.137069687 | F14: =D14+$D$11 -> -0.3780201642 | G14: =E14+$D$11 -> 1.351671524 | H14: =$C$2*COS(B14*D_R())+$C$9*COS(F14+$E$2) -> 4.452198597 | I14: =$C$2*SIN(B14*D_R())+$C$9*SIN(F14+$E$2) -> 2.271824435 | J14: =ATAN2(H14,(I14-$C$6)) -> -0.006328376503
H18: xE | I18: yE
B20: q12 | D20: q13 | E20: q14 | F20: q13 | G20: q14 | J20: q16
B21: 0 | C21: =(B21-$C$11)*D_R() -> 0.7853981634 | D21: =fourbar2($C$2,$C$3,$C$4,$C$7,1,C21) -> 0.5512706486 | E21: 2.029879318 | F21: =D21+$D$11 -> -0.2341275148 | G21: =E21+$D$11 -> 1.244481154 | H21: =$C$2*COS(B21*D_R())+$C$9*COS(F21+$E$2) -> 4.29503756 | I21: =$C$2*SIN(B21*D_R())+$C$9*SIN(F21+$E$2) -> 2.26775825 | J21: =ATAN2(H21,(I21-$C$6)) -> -0.007506603559
B22: 5 | C22: =(B22-$C$11)*D_R() -> 0.872664626 | D22: =fourbar2($C$2,$C$3,$C$4,$C$7,1,C22) -> 0.5249109434 | E22: 2.039530799 | F22: =D22+$D$11 -> -0.26048722 | G22: =E22+$D$11 -> 1.254132636 | H22: =$C$2*COS(B22*D_R())+$C$9*COS(F22+$E$2) -> 4.349858089 | I22: =$C$2*SIN(B22*D_R())+$C$9*SIN(F22+$E$2) -> 2.26728002 | J22: =ATAN2(H22,(I22-$C$6)) -> -0.007521938058
B23: 10 | C23: =(B23-$C$11)*D_R() -> 0.9599310886 | D23: =fourbar2($C$2,$C$3,$C$4,$C$7,1,C23) -> 0.4994434127 | E23: 2.052733391 | F23: -0.2859547507 | G23: 1.267335227 | H23: =$C$2*COS(B23*D_R())+$C$9*COS(F23+$E$2) -> 4.392899997 | I23: =$C$2*SIN(B23*D_R())+$C$9*SIN(F23+$E$2) -> 2.267665191 | J23: -0.007360564727
B24: 15 | C24: =(B24-$C$11)*D_R() -> 1.047197551 | D24: =fourbar2($C$2,$C$3,$C$4,$C$7,1,C24) -> 0.4749283873 | E24: 2.069300099 | F24: -0.3104697761 | G24: 1.283901935 | H24: =$C$2*COS(B24*D_R())+$C$9*COS(F24+$E$2) -> 4.424323752 | I24: =$C$2*SIN(B24*D_R())+$C$9*SIN(F24+$E$2) -> 2.268665753 | J24: -0.007082149806
B25: 20 | C25: =(B25-$C$11)*D_R() -> 1.134464014 | D25: =fourbar2($C$2,$C$3,$C$4,$C$7,1,C25) -> 0.4514025496 | E25: 2.089025008 | F25: -0.3339956138 | G25: 1.303626845 | H25: =$C$2*COS(B25*D_R())+$C$9*COS(F25+$E$2) -> 4.444412505 | I25: =$C$2*SIN(B25*D_R())+$C$9*SIN(F25+$E$2) -> 2.269956483 | J25: -0.006759736923
B26: 25 | C26: =(B26-$C$11)*D_R() -> 1.221730476 | D26: =fourbar2($C$2,$C$3,$C$4,$C$7,1,C26) -> 0.4288841807 | E26: 2.111689929 | F26: -0.3565139827 | G26: 1.326291765 | H26: =$C$2*COS(B26*D_R())+$C$9*COS(F26+$E$2) -> 4.453549441 | I26: =$C$2*SIN(B26*D_R())+$C$9*SIN(F26+$E$2) -> 2.271151911 | J26: -0.006477459416
B27: 30 | C27: =(B27-$C$11)*D_R() -> 1.308996939 | D27: =fourbar2($C$2,$C$3,$C$4,$C$7,1,C27) -> 0.4073779992 | E27: 2.137069687 | F27: -0.3780201642 | G27: 1.351671524 | H27: =$C$2*COS(B27*D_R())+$C$9*COS(F27+$E$2) -> 4.452198597 | I27: =$C$2*SIN(B27*D_R())+$C$9*SIN(F27+$E$2) -> 2.271824435 | J27: -0.006328376503
B28: 35 | C28: =(B28-$C$11)*D_R() -> 1.396263402 | D28: =fourbar2($C$2,$C$3,$C$4,$C$7,1,C28) -> 0.3868795025 | E28: 2.164936072 | F28: -0.3985186609 | G28: 1.379537908 | H28: =$C$2*COS(B28*D_R())+$C$9*COS(F28+$E$2) -> 4.440889024 | I28: =$C$2*SIN(B28*D_R())+$C$9*SIN(F28+$E$2) -> 2.271522623 | J28: -0.006412451796
B29: 40 | C29: =(B29-$C$11)*D_R() -> 1.483529864 | D29: =fourbar2($C$2,$C$3,$C$4,$C$7,1,C29) -> 0.3673788093 | E29: 2.195060518 | F29: -0.4180193541 | G29: 1.409662355 | H29: =$C$2*COS(B29*D_R())+$C$9*COS(F29+$E$2) -> 4.420201842 | I29: =$C$2*SIN(B29*D_R())+$C$9*SIN(F29+$E$2) -> 2.269789056 | J29: -0.006834636662
B30: 45 | C30: =(B30-$C$11)*D_R() -> 1.570796327 | D30: =fourbar2($C$2,$C$3,$C$4,$C$7,1,C30) -> 0.3488640566 | E30: 2.227215653 | F30: -0.4365341068 | G30: 1.44181749 | H30: =$C$2*COS(B30*D_R())+$C$9*COS(F30+$E$2) -> 4.390759691 | I30: =$C$2*SIN(B30*D_R())+$C$9*SIN(F30+$E$2) -> 2.266177415 | J30: -0.007702975787
B31: 50 | C31: =(B31-$C$11)*D_R() -> 1.658062789 | D31: =fourbar2($C$2,$C$3,$C$4,$C$7,1,C31) -> 0.3313244489 | E31: 2.261175807 | F31: -0.4540737145 | G31: 1.475777643 | H31: =$C$2*COS(B31*D_R())+$C$9*COS(F31+$E$2) -> 4.353218003 | I31: =$C$2*SIN(B31*D_R())+$C$9*SIN(F31+$E$2) -> 2.260268755 | J31: -0.009126614401
B32: 55 | C32: =(B32-$C$11)*D_R() -> 1.745329252 | D32: =fourbar2($C$2,$C$3,$C$4,$C$7,1,C32) -> 0.3147530811 | E32: 2.29671659 | F32: -0.4706450823 | G32: 1.511318427 | H32: =$C$2*COS(B32*D_R())+$C$9*COS(F32+$E$2) -> 4.308257588 | I32: =$C$2*SIN(B32*D_R())+$C$9*SIN(F32+$E$2) -> 2.251687103 | J32: -0.01121355228
B33: 60 | C33: =(B33-$C$11)*D_R() -> 1.832595715 | D33: =fourbar2($C$2,$C$3,$C$4,$C$7,1,C33) -> 0.2991496752 | E33: 2.333613603 | F33: -0.4862484882 | G33: 1.54821544 | H33: =$C$2*COS(B33*D_R())+$C$9*COS(F33+$E$2) -> 4.256578045 | I33: =$C$2*SIN(B33*D_R())+$C$9*SIN(F33+$E$2) -> 2.240114698 | J33: -0.01406795569
B34: 65 | C34: =(B34-$C$11)*D_R() -> 1.919862177 | D34: =fourbar2($C$2,$C$3,$C$4,$C$7,1,C34) -> 0.284523385 | E34: 2.371640283 | F34: -0.5008747784 | G34: 1.58624212 | H34: =$C$2*COS(B34*D_R())+$C$9*COS(F34+$E$2) -> 4.198891607 | I34: =$C$2*SIN(B34*D_R())+$C$9*SIN(F34+$E$2) -> 2.225307264 | J34: -0.01778680326
B35: 70 | C35: =(B35-$C$11)*D_R() -> 2.00712864 | D35: =fourbar2($C$2,$C$3,$C$4,$C$7,1,C35) -> 0.2708958348 | E35: 2.410564887 | F35: -0.5145023286 | G35: 1.625166723 | H35: =$C$2*COS(B35*D_R())+$C$9*COS(F35+$E$2) -> 4.135917023 | I35: =$C$2*SIN(B35*D_R())+$C$9*SIN(F35+$E$2) -> 2.207109862 | J35: -0.0224556062
B36: 75 | C36: =(B36-$C$11)*D_R() -> 2.094395102 | D36: =fourbar2($C$2,$C$3,$C$4,$C$7,1,C36) -> 0.2583045683 | E36: 2.450146522 | F36: -0.5270935951 | G36: 1.664748359 | H36: =$C$2*COS(B36*D_R())+$C$9*COS(F36+$E$2) -> 4.068373154 | I36: =$C$2*SIN(B36*D_R())+$C$9*SIN(F36+$E$2) -> 2.185473896 | J36: -0.02814291167
B37: 80 | C37: =(B37-$C$11)*D_R() -> 2.181661565 | D37: =fourbar2($C$2,$C$3,$C$4,$C$7,1,C37) -> 0.2468070852 | E37: 2.490130146 | F37: -0.5385910782 | G37: 1.704731983 | H37: =$C$2*COS(B37*D_R())+$C$9*COS(F37+$E$2) -> 3.996971917 | I37: =$C$2*SIN(B37*D_R())+$C$9*SIN(F37+$E$2) -> 2.160475898 | J37: -0.03489328301
B38: 85 | C38: =(B38-$C$11)*D_R() -> 2.268928028 | D38: =fourbar2($C$2,$C$3,$C$4,$C$7,1,C38) -> 0.2364856208 | E38: 2.530240428 | F38: -0.5489125426 | G38: 1.744842265 | H38: =$C$2*COS(B38*D_R())+$C$9*COS(F38+$E$2) -> 3.922410231 | I38: =$C$2*SIN(B38*D_R())+$C$9*SIN(F38+$E$2) -> 2.13233862 | J38: -0.04271847429
B39: 90 | C39: =(B39-$C$11)*D_R() -> 2.35619449 | D39: =fourbar2($C$2,$C$3,$C$4,$C$7,1,C39) -> 0.227452749 | E39: 2.570174448 | F39: -0.5579454144 | G39: 1.784776285 | H39: =$C$2*COS(B39*D_R())+$C$9*COS(F39+$E$2) -> 3.845360527 | I39: =$C$2*SIN(B39*D_R())+$C$9*SIN(F39+$E$2) -> 2.101454681 | J39: -0.05158662353
B40: 95 | C40: =(B40-$C$11)*D_R() -> 2.443460953 | D40: =fourbar2($C$2,$C$3,$C$4,$C$7,1,C40) -> 0.2198577088 | E40: 2.609593407 | F40: -0.5655404546 | G40: 1.824195244 | H40: =$C$2*COS(B40*D_R())+$C$9*COS(F40+$E$2) -> 3.766459388 | I40: =$C$2*SIN(B40*D_R())+$C$9*SIN(F40+$E$2) -> 2.068412224 | J40: -0.06140955283
B41: 100 | C41: =(B41-$C$11)*D_R() -> 2.530727415 | D41: =fourbar2($C$2,$C$3,$C$4,$C$7,1,C41) -> 0.2138929705 | E41: 2.648113942 | F41: -0.5715051929 | G41: 1.862715779 | H41: =$C$2*COS(B41*D_R())+$C$9*COS(F41+$E$2) -> 3.68629386 | I41: =$C$2*SIN(B41*D_R())+$C$9*SIN(F41+$E$2) -> 2.034020536 | J41: -0.07202880045
B42: 105 | C42: =(B42-$C$11)*D_R() -> 2.617993878 | D42: =fourbar2($C$2,$C$3,$C$4,$C$7,1,C42) -> 0.2097998629 | E42: 2.68530049 | F42: -0.5755983005 | G42: 1.899902327 | H42: =$C$2*COS(B42*D_R())+$C$9*COS(F42+$E$2) -> 3.605385188 | I42: =$C$2*SIN(B42*D_R())+$C$9*SIN(F42+$E$2) -> 1.999330706 | J42: -0.08320197611
B43: 110 | C43: =(B43-$C$11)*D_R() -> 2.705260341 | D43: =fourbar2($C$2,$C$3,$C$4,$C$7,1,C43) -> 0.2078709467 | E43: 2.72066145 | F43: -0.5775272167 | G43: 1.935263287 | H43: =$C$2*COS(B43*D_R())+$C$9*COS(F43+$E$2) -> 3.524170251 | I43: =$C$2*SIN(B43*D_R())+$C$9*SIN(F43+$E$2) -> 1.965641857 | J43: -0.09459256304
B44: 115 | C44: =(B44-$C$11)*D_R() -> 2.792526803 | D44: =fourbar2($C$2,$C$3,$C$4,$C$7,1,C44) -> 0.2084453232 | E44: 2.753653708 | F44: -0.5769528402 | G44: 1.968255544 | H44: =$C$2*COS(B44*D_R())+$C$9*COS(F44+$E$2) -> 3.442982214 | I44: =$C$2*SIN(B44*D_R())+$C$9*SIN(F44+$E$2) -> 1.934477502 | J44: -0.1057683228
B45: 120 | C45: =(B45-$C$11)*D_R() -> 2.879793266 | D45: =fourbar2($C$2,$C$3,$C$4,$C$7,1,C45) -> 0.2118917746 | E45: 2.783701587 | F45: -0.5735063888 | G45: 1.998303424 | H45: =$C$2*COS(B45*D_R())+$C$9*COS(F45+$E$2) -> 3.362033988 | I45: =$C$2*SIN(B45*D_R())+$C$9*SIN(F45+$E$2) -> 1.907511591 | J45: -0.1162153134
B46: 125 | C46: =(B46-$C$11)*D_R() -> 2.967059728 | D46: =fourbar2($C$2,$C$3,$C$4,$C$7,1,C46) -> 0.2185750311 | E46: 2.81023587 | F46: -0.5668231323 | G46: 2.024837707 | H46: =$C$2*COS(B46*D_R())+$C$9*COS(F46+$E$2) -> 3.281410834 | I46: =$C$2*SIN(B46*D_R())+$C$9*SIN(F46+$E$2) -> 1.886425743 | J46: -0.1253744341
B47: 130 | C47: =(B47-$C$11)*D_R() -> 3.054326191 | D47: =fourbar2($C$2,$C$3,$C$4,$C$7,1,C47) -> 0.2288047163 | E47: 2.832753431 | F47: -0.5565934471 | G47: 2.047355268 | H47: =$C$2*COS(B47*D_R())+$C$9*COS(F47+$E$2) -> 3.201080273 | I47: =$C$2*SIN(B47*D_R())+$C$9*SIN(F47+$E$2) -> 1.872696918 | J47: -0.132702659
B48: 135 | C48: =(B48-$C$11)*D_R() -> 3.141592654 | D48: =fourbar2($C$2,$C$3,$C$4,$C$7,1,C48) -> 0.2427755165 | E48: 2.850887364 | F48: -0.5426226469 | G48: 2.065489201 | H48: =$C$2*COS(B48*D_R())+$C$9*COS(F48+$E$2) -> 3.120925661 | I48: =$C$2*SIN(B48*D_R())+$C$9*SIN(F48+$E$2) -> 1.867351421 | J48: -0.137750345
B49: 140 | C49: =(B49-$C$11)*D_R() -> 3.228859116 | D49: =fourbar2($C$2,$C$3,$C$4,$C$7,1,C49) -> 0.2605169985 | E49: 2.864465713 | F49: -0.5248811649 | G49: 2.07906755 | H49: =$C$2*COS(B49*D_R())+$C$9*COS(F49+$E$2) -> 3.040802179 | I49: =$C$2*SIN(B49*D_R())+$C$9*SIN(F49+$E$2) -> 1.87076106 | J49: -0.1402332364
B50: 145 | C50: =(B50-$C$11)*D_R() -> 3.316125579 | D50: =fourbar2($C$2,$C$3,$C$4,$C$7,1,C50) -> 0.2818735829 | E50: 2.873534422 | F50: -0.5035245805 | G50: 2.088136259 | H50: =$C$2*COS(B50*D_R())+$C$9*COS(F50+$E$2) -> 2.960603127 | I50: =$C$2*SIN(B50*D_R())+$C$9*SIN(F50+$E$2) -> 1.882564917 | J50: -0.1400732852
B51: 150 | C51: =(B51-$C$11)*D_R() -> 3.403392041 | D51: =fourbar2($C$2,$C$3,$C$4,$C$7,1,C51) -> 0.306523819 | E51: 2.878333632 | F51: -0.4788743444 | G51: 2.092935468 | H51: =$C$2*COS(B51*D_R())+$C$9*COS(F51+$E$2) -> 2.880317864 | I51: =$C$2*SIN(B51*D_R())+$C$9*SIN(F51+$E$2) -> 1.90175323 | J51: -0.1373937606
B52: 155 | C52: =(B52-$C$11)*D_R() -> 3.490658504 | D52: =fourbar2($C$2,$C$3,$C$4,$C$7,1,C52) -> 0.3340298133 | E52: 2.879238198 | F52: -0.4513683501 | G52: 2.093840034 | H52: =$C$2*COS(B52*D_R())+$C$9*COS(F52+$E$2) -> 2.800066612 | I52: =$C$2*SIN(B52*D_R())+$C$9*SIN(F52+$E$2) -> 1.926875159 | J52: -0.1324752557
B53: 160 | C53: =(B53-$C$11)*D_R() -> 3.577924967 | D53: =fourbar2($C$2,$C$3,$C$4,$C$7,1,C53) -> 0.3638963089 | E53: 2.876686812 | F53: -0.4215018545 | G53: 2.091288649 | H53: =$C$2*COS(B53*D_R())+$C$9*COS(F53+$E$2) -> 2.720108641 | I53: =$C$2*SIN(B53*D_R())+$C$9*SIN(F53+$E$2) -> 1.956286145 | J53: -0.1256941821
B54: 165 | C54: =(B54-$C$11)*D_R() -> 3.665191429 | D54: =fourbar2($C$2,$C$3,$C$4,$C$7,1,C54) -> 0.3956209894 | E54: 2.871121616 | F54: -0.389777174 | G54: 2.085723453 | H54: =$C$2*COS(B54*D_R())+$C$9*COS(F54+$E$2) -> 2.640830394 | I54: =$C$2*SIN(B54*D_R())+$C$9*SIN(F54+$E$2) -> 1.988359322 | J54: -0.1174653277
B55: 170 | C55: =(B55-$C$11)*D_R() -> 3.752457892 | D55: =fourbar2($C$2,$C$3,$C$4,$C$7,1,C55) -> 0.4287274662 | E55: 2.862948438 | F55: -0.3566706972 | G55: 2.077550275 | H55: =$C$2*COS(B55*D_R())+$C$9*COS(F55+$E$2) -> 2.562723549 | I55: =$C$2*SIN(B55*D_R())+$C$9*SIN(F55+$E$2) -> 2.0216259 | J55: -0.1082000901
B56: 175 | C56: =(B56-$C$11)*D_R() -> 3.839724354 | D56: =fourbar2($C$2,$C$3,$C$4,$C$7,1,C56) -> 0.4627814032 | E56: 2.852517102 | F56: -0.3226167602 | G56: 2.067118938 | H56: =$C$2*COS(B56*D_R())+$C$9*COS(F56+$E$2) -> 2.486361064 | I56: =$C$2*SIN(B56*D_R())+$C$9*SIN(F56+$E$2) -> 2.054846105 | J56: -0.09828180252
B57: 180 | C57: =(B57-$C$11)*D_R() -> 3.926990817 | D57: =fourbar2($C$2,$C$3,$C$4,$C$7,1,C57) -> 0.4973944909 | E57: 2.84011619 | F57: -0.2880036725 | G57: 2.054718027 | H57: =$C$2*COS(B57*D_R())+$C$9*COS(F57+$E$2) -> 2.412375565 | I57: =$C$2*SIN(B57*D_R())+$C$9*SIN(F57+$E$2) -> 2.087029708 | J57: -0.08805410998
B58: 185 | C58: =(B58-$C$11)*D_R() -> 4.01425728 | D58: =fourbar2($C$2,$C$3,$C$4,$C$7,1,C58) -> 0.5322213893 | E58: 2.825976197 | F58: -0.2531767741 | G58: 2.040578033 | H58: =$C$2*COS(B58*D_R())+$C$9*COS(F58+$E$2) -> 2.34144154 | I58: =$C$2*SIN(B58*D_R())+$C$9*SIN(F58+$E$2) -> 2.117426835 | J58: -0.07781722813
B59: 190 | C59: =(B59-$C$11)*D_R() -> 4.101523742 | D59: =fourbar2($C$2,$C$3,$C$4,$C$7,1,C59) -> 0.566953467 | E59: 2.810276528 | F59: -0.2184446964 | G59: 2.024878365 | H59: =$C$2*COS(B59*D_R())+$C$9*COS(F59+$E$2) -> 2.274261223 | I59: =$C$2*SIN(B59*D_R())+$C$9*SIN(F59+$E$2) -> 2.145504557 | J59: -0.06782793607
B60: 195 | C60: =(B60-$C$11)*D_R() -> 4.188790205 | D60: =fourbar2($C$2,$C$3,$C$4,$C$7,1,C60) -> 0.6013116763 | E60: 2.79315363 | F60: -0.1840864871 | G60: 2.007755467 | H60: =$C$2*COS(B60*D_R())+$C$9*COS(F60+$E$2) -> 2.211553437 | I60: =$C$2*SIN(B60*D_R())+$C$9*SIN(F60+$E$2) -> 2.170918704 | J60: -0.05830065541
B61: 200 | C61: =(B61-$C$11)*D_R() -> 4.276056667 | D61: =fourbar2($C$2,$C$3,$C$4,$C$7,1,C61) -> 0.6350397818 | E61: 2.774708834 | F61: -0.1503583816 | G61: 1.98931067 | H61: =$C$2*COS(B61*D_R())+$C$9*COS(F61+$E$2) -> 2.154044573 | I61: =$C$2*SIN(B61*D_R())+$C$9*SIN(F61+$E$2) -> 2.193485758 | J61: -0.04940824155
B62: 205 | C62: =(B62-$C$11)*D_R() -> 4.36332313 | D62: =fourbar2($C$2,$C$3,$C$4,$C$7,1,C62) -> 0.6678984681 | E62: 2.755015366 | F62: -0.1174996953 | G62: 1.969617203 | H62: =$C$2*COS(B62*D_R())+$C$9*COS(F62+$E$2) -> 2.102461012 | I62: =$C$2*SIN(B62*D_R())+$C$9*SIN(F62+$E$2) -> 2.213156827 | J62: -0.04128201875
B63: 210 | C63: =(B63-$C$11)*D_R() -> 4.450589593 | D63: =fourbar2($C$2,$C$3,$C$4,$C$7,1,C63) -> 0.6996604906 | E63: 2.734124418 | F63: -0.08573767278 | G63: 1.948726255 | H63: =$C$2*COS(B63*D_R())+$C$9*COS(F63+$E$2) -> 2.057522388 | I63: =$C$2*SIN(B63*D_R())+$C$9*SIN(F63+$E$2) -> 2.229994196 | J63: -0.0340112016
B64: 215 | C64: =(B64-$C$11)*D_R() -> 4.537856055 | D64: =fourbar2($C$2,$C$3,$C$4,$C$7,1,C64) -> 0.7301068637 | E64: 2.712070373 | F64: -0.05529129973 | G64: 1.92667221 | H64: =$C$2*COS(B64*D_R())+$C$9*COS(F64+$E$2) -> 2.019935234 | I64: =$C$2*SIN(B64*D_R())+$C$9*SIN(F64+$E$2) -> 2.244150205 | J64: -0.02764225713
B65: 220 | C65: =(B65-$C$11)*D_R() -> 4.625122518 | D65: =fourbar2($C$2,$C$3,$C$4,$C$7,1,C65) -> 0.7590240295 | E65: 2.688875387 | F65: -0.02637413387 | G65: 1.903477224 | H65: =$C$2*COS(B65*D_R())+$C$9*COS(F65+$E$2) -> 1.990386578 | I65: =$C$2*SIN(B65*D_R())+$C$9*SIN(F65+$E$2) -> 2.255847935 | J65: -0.02217902048
B66: 225 | C66: =(B66-$C$11)*D_R() -> 4.71238898 | D66: =fourbar2($C$2,$C$3,$C$4,$C$7,1,C66) -> 0.7862019483 | E66: 2.664553545 | F66: 0.0008037849396 | G66: 1.879155382 | H66: =$C$2*COS(B66*D_R())+$C$9*COS(F66+$E$2) -> 1.969537115 | I66: =$C$2*SIN(B66*D_R())+$C$9*SIN(F66+$E$2) -> 2.265363143 | J66: -0.01758448029
B67: 230 | C67: =(B67-$C$11)*D_R() -> 4.799655443 | D67: =fourbar2($C$2,$C$3,$C$4,$C$7,1,C67) -> 0.811433076 | E67: 2.639114785 | F67: 0.02603491256 | G67: 1.853716622 | H67: =$C$2*COS(B67*D_R())+$C$9*COS(F67+$E$2) -> 1.958013532 | I67: =$C$2*SIN(B67*D_R())+$C$9*SIN(F67+$E$2) -> 2.273006958 | J67: -0.01378505894
B68: 235 | C68: =(B68-$C$11)*D_R() -> 4.886921906 | D68: =fourbar2($C$2,$C$3,$C$4,$C$7,1,C68) -> 0.8345122286 | E68: 2.612568798 | F68: 0.0491140652 | G68: 1.827170635 | H68: =$C$2*COS(B68*D_R())+$C$9*COS(F68+$E$2) -> 1.956399577 | I68: =$C$2*SIN(B68*D_R())+$C$9*SIN(F68+$E$2) -> 2.27910898 | J68: -0.01067789345
B69: 240 | C69: =(B69-$C$11)*D_R() -> 4.974188368 | D69: =fourbar2($C$2,$C$3,$C$4,$C$7,1,C69) -> 0.8552373639 | E69: 2.584929052 | F69: 0.06983920045 | G69: 1.799530889 | H69: =$C$2*COS(B69*D_R())+$C$9*COS(F69+$E$2) -> 1.965225399 | I69: =$C$2*SIN(B69*D_R())+$C$9*SIN(F69+$E$2) -> 2.284000586 | J69: -0.008141081893
B70: 245 | C70: =(B70-$C$11)*D_R() -> 5.061454831 | D70: =fourbar2($C$2,$C$3,$C$4,$C$7,1,C70) -> 0.8734113314 | E70: 2.556217079 | F70: 0.088013168 | G70: 1.770818916 | H70: =$C$2*COS(B70*D_R())+$C$9*COS(F70+$E$2) -> 1.984954706 | I70: =$C$2*SIN(B70*D_R())+$C$9*SIN(F70+$E$2) -> 2.287998461 | J70: -0.006046179729
B71: 250 | C71: =(B71-$C$11)*D_R() -> 5.148721293 | D71: =fourbar2($C$2,$C$3,$C$4,$C$7,1,C71) -> 0.8888446561 | E71: 2.526467114 | F71: 0.1034464927 | G71: 1.741068951 | H71: =$C$2*COS(B71*D_R())+$C$9*COS(F71+$E$2) -> 2.015969295 | I71: =$C$2*SIN(B71*D_R())+$C$9*SIN(F71+$E$2) -> 2.291388593 | J71: -0.004271570273
B72: 255 | C72: =(B72-$C$11)*D_R() -> 5.235987756 | D72: =fourbar2($C$2,$C$3,$C$4,$C$7,1,C72) -> 0.9013594069 | E72: 2.495731119 | F72: 0.1159612435 | G72: 1.710332955 | H72: =$C$2*COS(B72*D_R())+$C$9*COS(F72+$E$2) -> 2.058550622 | I72: =$C$2*SIN(B72*D_R())+$C$9*SIN(F72+$E$2) -> 2.294411246 | J72: -0.002714890631
B73: 260 | C73: =(B73-$C$11)*D_R() -> 5.323254219 | D73: =fourbar2($C$2,$C$3,$C$4,$C$7,1,C73) -> 0.910794168 | E73: 2.464084146 | F73: 0.1253960046 | G73: 1.678685983 | H73: =$C$2*COS(B73*D_R())+$C$9*COS(F73+$E$2) -> 2.112858305 | I73: =$C$2*SIN(B73*D_R())+$C$9*SIN(F73+$E$2) -> 2.297247717 | J73: -0.00130263433
B74: 265 | C74: =(B74-$C$11)*D_R() -> 5.410520681 | D74: =fourbar2($C$2,$C$3,$C$4,$C$7,1,C74) -> 0.9170100607 | E74: 2.431629917 | F74: 0.1316118973 | G74: 1.646231753 | H74: =$C$2*COS(B74*D_R())+$C$9*COS(F74+$E$2) -> 2.178905794 | I74: =$C$2*SIN(B74*D_R())+$C$9*SIN(F74+$E$2) -> 2.300009954 | J74: 4.56850624e-06
B75: 270 | C75: =(B75-$C$11)*D_R() -> 5.497787144 | D75: =fourbar2($C$2,$C$3,$C$4,$C$7,1,C75) -> 0.919897655 | E75: 2.398506324 | F75: 0.1344994916 | G75: 1.613108161 | H75: =$C$2*COS(B75*D_R())+$C$9*COS(F75+$E$2) -> 2.256534001 | I75: =$C$2*SIN(B75*D_R())+$C$9*SIN(F75+$E$2) -> 2.302734367 | J75: 0.001211754882
B76: 275 | C76: =(B76-$C$11)*D_R() -> 5.585053606 | D76: =fourbar2($C$2,$C$3,$C$4,$C$7,1,C76) -> 0.9193844649 | E76: 2.364890476 | F76: 0.1339863015 | G76: 1.579492313 | H76: =$C$2*COS(B76*D_R())+$C$9*COS(F76+$E$2) -> 2.345384377 | I76: =$C$2*SIN(B76*D_R())+$C$9*SIN(F76+$E$2) -> 2.305381204 | J76: 0.002294376197
B77: 280 | C77: =(B77-$C$11)*D_R() -> 5.672320069 | D77: =fourbar2($C$2,$C$3,$C$4,$C$7,1,C77) -> 0.9154425464 | E77: 2.331002713 | F77: 0.130044383 | G77: 1.545604549 | H77: =$C$2*COS(B77*D_R())+$C$9*COS(F77+$E$2) -> 2.444873777 | I77: =$C$2*SIN(B77*D_R())+$C$9*SIN(F77+$E$2) -> 2.307840767 | J77: 0.003207012357
B78: 285 | C78: =(B78-$C$11)*D_R() -> 5.759586532 | D78: =fourbar2($C$2,$C$3,$C$4,$C$7,1,C78) -> 0.9080955334 | E78: 2.297108929 | F78: 0.12269737 | G78: 1.511710765 | H78: =$C$2*COS(B78*D_R())+$C$9*COS(F78+$E$2) -> 2.554174259 | I78: =$C$2*SIN(B78*D_R())+$C$9*SIN(F78+$E$2) -> 2.309947254 | J78: 0.003894489211
B79: 290 | C79: =(B79-$C$11)*D_R() -> 5.846852994 | D79: =fourbar2($C$2,$C$3,$C$4,$C$7,1,C79) -> 0.8974242959 | E79: 2.263520474 | F79: 0.1120261325 | G79: 1.47812231 | H79: =$C$2*COS(B79*D_R())+$C$9*COS(F79+$E$2) -> 2.672201623 | I79: =$C$2*SIN(B79*D_R())+$C$9*SIN(F79+$E$2) -> 2.311500125 | J79: 0.004303587789
B80: 295 | C80: =(B80-$C$11)*D_R() -> 5.934119457 | D80: =fourbar2($C$2,$C$3,$C$4,$C$7,1,C80) -> 0.8835703289 | E80: 2.230590957 | F80: 0.09817216555 | G80: 1.445192794 | H80: =$C$2*COS(B80*D_R())+$C$9*COS(F80+$E$2) -> 2.797616602 | I80: =$C$2*SIN(B80*D_R())+$C$9*SIN(F80+$E$2) -> 2.312291735 | J80: 0.004393616978
B81: 300 | C81: =(B81-$C$11)*D_R() -> 6.021385919 | D81: =fourbar2($C$2,$C$3,$C$4,$C$7,1,C81) -> 0.8667360415 | E81: 2.198709485 | F81: 0.08133787813 | G81: 1.413311321 | H81: =$C$2*COS(B81*D_R())+$C$9*COS(F81+$E$2) -> 2.92884209 | I81: =$C$2*SIN(B81*D_R())+$C$9*SIN(F81+$E$2) -> 2.312138548 | J81: 0.004144463263
B82: 305 | C82: =(B82-$C$11)*D_R() -> 6.108652382 | D82: =fourbar2($C$2,$C$3,$C$4,$C$7,1,C82) -> 0.8471813351 | E82: 2.168290223 | F82: 0.0617831717 | G82: 1.38289206 | H82: =$C$2*COS(B82*D_R())+$C$9*COS(F82+$E$2) -> 3.064098265 | I82: =$C$2*SIN(B82*D_R())+$C$9*SIN(F82+$E$2) -> 2.310912016 | J82: 0.003561233684
B83: 310 | C83: =(B83-$C$11)*D_R() -> 6.195918845 | D83: =fourbar2($C$2,$C$3,$C$4,$C$7,1,C83) -> 0.8252162586 | E83: 2.13975867 | F83: 0.03981809523 | G83: 1.354360506 | H83: =$C$2*COS(B83*D_R())+$C$9*COS(F83+$E$2) -> 3.201455236 | I83: =$C$2*SIN(B83*D_R())+$C$9*SIN(F83+$E$2) -> 2.308564471 | J83: 0.002675174357
B84: 315 | C84: =(B84-$C$11)*D_R() -> 6.283185307 | D84: =fourbar2($C$2,$C$3,$C$4,$C$7,1,C84) -> 0.8011900389 | E84: 2.113535551 | F84: 0.0157918755 | G84: 1.328137388 | H84: =$C$2*COS(B84*D_R())+$C$9*COS(F84+$E$2) -> 3.338900058 | I84: =$C$2*SIN(B84*D_R())+$C$9*SIN(F84+$E$2) -> 2.305145557 | J84: 0.001541092093
B85: 320 | C85: =(B85-$C$11)*D_R() -> 6.37045177 | D85: =fourbar2($C$2,$C$3,$C$4,$C$7,1,C85) -> 0.7754773227 | E85: 2.090019734 | F85: -0.009920840684 | G85: 1.30462157 | H85: =$C$2*COS(B85*D_R())+$C$9*COS(F85+$E$2) -> 3.474412426 | I85: =$C$2*SIN(B85*D_R())+$C$9*SIN(F85+$E$2) -> 2.30080592 | J85: 0.0002319585835
B86: 325 | C86: =(B86-$C$11)*D_R() -> 6.457718232 | D86: =fourbar2($C$2,$C$3,$C$4,$C$7,1,C86) -> 0.7484629032 | E86: 2.069571791 | F86: =D86+$D$11 -> -0.03693526019 | G86: =E86+$D$11 -> 1.284173628 | H86: =$C$2*COS(B86*D_R())+$C$9*COS(F86+$E$2) -> 3.606041632 | I86: =$C$2*SIN(B86*D_R())+$C$9*SIN(F86+$E$2) -> 2.295786982 | J86: =ATAN2(H86,(I86-$C$6)) -> -0.001168321497
B87: 330 | C87: =(B87-$C$11)*D_R() -> 6.544984695 | D87: =fourbar2($C$2,$C$3,$C$4,$C$7,1,C87) -> 0.7205264273 | E87: 2.052499871 | F87: -0.06487173608 | G87: 1.267101707 | H87: =$C$2*COS(B87*D_R())+$C$9*COS(F87+$E$2) -> 3.731977028 | I87: =$C$2*SIN(B87*D_R())+$C$9*SIN(F87+$E$2) -> 2.290398052 | J87: -0.002572879505
B88: 335 | C88: =(B88-$C$11)*D_R() -> 6.632251158 | D88: =fourbar2($C$2,$C$3,$C$4,$C$7,1,C88) -> 0.6920285377 | E88: 2.039049166 | F88: -0.09336962571 | G88: 1.253651002 | H88: =$C$2*COS(B88*D_R())+$C$9*COS(F88+$E$2) -> 3.850605421 | I88: =$C$2*SIN(B88*D_R())+$C$9*SIN(F88+$E$2) -> 2.284984265 | J88: -0.003899557833
B89: 340 | C89: =(B89-$C$11)*D_R() -> 6.71951762 | D89: =fourbar2($C$2,$C$3,$C$4,$C$7,1,C89) -> 0.6632996085 | E89: 2.029395786 | F89: -0.1220985549 | G89: 1.243997623 | H89: =$C$2*COS(B89*D_R())+$C$9*COS(F89+$E$2) -> 3.96055112 | I89: =$C$2*SIN(B89*D_R())+$C$9*SIN(F89+$E$2) -> 2.279890216 | J89: -0.005077478086
B90: 345 | C90: =(B90-$C$11)*D_R() -> 6.806784083 | D90: =fourbar2($C$2,$C$3,$C$4,$C$7,1,C90) -> 0.6346317753 | E90: 2.02364517 | F90: -0.1507663881 | G90: 1.238247007 | H90: =$C$2*COS(B90*D_R())+$C$9*COS(F90+$E$2) -> 4.060697265 | I90: =$C$2*SIN(B90*D_R())+$C$9*SIN(F90+$E$2) -> 2.27542438 | J90: -0.006051994999
B91: 350 | C91: =(B91-$C$11)*D_R() -> 6.894050545 | D91: =fourbar2($C$2,$C$3,$C$4,$C$7,1,C91) -> 0.606274454 | E91: 2.02183462 | F91: -0.1791237094 | G91: 1.236436457 | H91: =$C$2*COS(B91*D_R())+$C$9*COS(F91+$E$2) -> 4.150189688 | I91: =$C$2*SIN(B91*D_R())+$C$9*SIN(F91+$E$2) -> 2.271828709 | J91: -0.006787848347
B92: 355 | C92: =(B92-$C$11)*D_R() -> 6.981317008 | D92: =fourbar2($C$2,$C$3,$C$4,$C$7,1,C92) -> 0.5784330994 | E92: 2.023939111 | F92: -0.206965064 | G92: 1.238540947 | H92: =$C$2*COS(B92*D_R())+$C$9*COS(F92+$E$2) -> 4.228426498 | I92: =$C$2*SIN(B92*D_R())+$C$9*SIN(F92+$E$2) -> 2.269256274 | J92: -0.007270596721
B93: 360 | C93: =(B93-$C$11)*D_R() -> 7.068583471 | D93: =fourbar2($C$2,$C$3,$C$4,$C$7,1,C93) -> 0.5512706486 | E93: 2.029879318 | F93: -0.2341275148 | G93: 1.244481154 | H93: =$C$2*COS(B93*D_R())+$C$9*COS(F93+$E$2) -> 4.29503756 | I93: =$C$2*SIN(B93*D_R())+$C$9*SIN(F93+$E$2) -> 2.26775825 | J93: -0.007506603559
